[Event "6th Uppsala Young Champions 2019"]
[Site "Uppsala"]
[Date "2019.10.30"]
[Round "8.8"]
[White "Kristensen, Bjarke Hautop"]
[Black "Fjallheim, Leif Reinert"]
[Result "1-0"]
[ECO "E32"]
[WhiteElo "2223"]
[BlackElo "1985"]
[Annotator "NA"]
[PlyCount "113"]
[EventDate "2019.10.25"]
[EventType "swiss"]
[EventCountry "SWE"]
[SourceTitle "playchess.com"]
[Source "ChessBase"]
[SourceQuality "1"]
[TimeControl "5400+30"]

1. d4 {[%emt 0:01:01]} Nf6 {[%emt 0:00:00]} 2. c4 {[%emt 0:00:13]} e6 {[%emt 0:00:23]} 3. Nc3 {[%emt 0:02:36]} Bb4 {[%emt 0:00:07]} 4. Qc2 {[%emt 0:00:15]} O-O {[%emt 0:00:20]} 5. a3 {[%emt 0:03:52]} Bxc3+ {[%emt 0:00:49]} 6. Qxc3 {[%emt 0:00:16]} Ne4 {[%emt 0:01:46]} 7. Qc2 {[%emt 0:00:12]} f5 {[%emt 0:02:43]} 8. g3 {[%emt 0:05:16]} d5 {[%emt 0:05:53] E32: Nimzo-Indian: Classical (4 Qc2): 4...0-0} (8... Qf6 9. e3 Nc6 10. b4 e5 11. d5 Nd8 12. Bb2 d6 13. f3 Ng5 14. f4 Ngf7 15. Nf3 Qe7 16. Qc3 {1-0 (66) Kotanjian,T (2518)-Kotsur,P (2550) Al Ain 2012}) 9. Bg2 {[%emt 0:01:47]} b6 $146 {[%emt 0:03:49]} ({Predecessor:} 9... Qe7 10. Nf3 c5 11. O-O Nc6 12. cxd5 exd5 13. dxc5 Qxc5 14. Qxc5 Nxc5 15. Bf4 Bd7 16. Rad1 {1-0 (69) Osiyemi,L (1760)-Golding,W (1409) Ascot 2014}) 10. b4 {[%emt 0:02:30]} Bb7 {[%emt 0:07:21]} 11. Nf3 {[%emt 0:03:27]} dxc4 {[%emt 0:02:51]} 12. Qxc4 {[%emt 0:00:32]} Bd5 {[%emt 0:00:45]} 13. Qc2 {[%emt 0:01:09]} Nd7 {[%emt 0:00:38]} 14. O-O {[%emt 0:07:00]} c6 {[%emt 0:01:52]} 15. Bb2 {[%emt 0:03:25]} (15. Ne5 $16) 15... Qe7 {[%emt 0:03:50]} 16. Nd2 {[%emt 0:03:11]} Nxd2 {[%emt 0:07:06]} 17. Qxd2 {[%emt 0:00:13]} b5 {[%emt 0:04:05]} 18. f3 {[%emt 0:01:13]} Nb6 {[%emt 0:01:58]} 19. e4 {[%emt 0:00:26]} Bc4 {[%emt 0:01:18]} 20. Rfe1 {[%emt 0:00:47]} fxe4 {[%emt 0:03:33]} 21. fxe4 {[%emt 0:00:46]} Rf7 {[%emt 0:01:39]} 22. Qc2 {[%emt 0:06:10]} Raf8 {[%emt 0:07:42]} 23. Rad1 {[%emt 0:00:16]} Qd7 {[%emt 0:07:26]} 24. Bc1 {[%emt 0:01:29]} Qb7 {[%emt 0:04:27]} 25. Be3 {[%emt 0:05:29]} Rd8 {[%emt 0:03:28]} 26. Rd2 {[%emt 0:01:24]} Qc7 $14 {[%emt 0:02:55]} 27. Bf4 {[%emt 0:10:26]} Qd7 {[%emt 0:01:48]} 28. Red1 {[%emt 0:00:26]} Qe8 {[%emt 0:01:31]} 29. Qc3 {[%emt 0:01:13]} Rfd7 {[%emt 0:01:46]} 30. Qe3 {[%emt 0:01:04]} h6 {[%emt 0:01:40]} 31. h4 {[%emt 0:00:06]} Qg6 {[%emt 0:00:44]} 32. Kh2 {[%emt 0:00:38]} Rf8 {[%emt 0:01:57]} 33. Bf3 {[%emt 0:02:22]} Qf7 {[%emt 0:02:57]} 34. Kg2 {[%emt 0:02:17]} Qe8 {[%emt 0:01:06]} 35. Rc1 {[%emt 0:00:43]} Qf7 {[%emt 0:01:04]} 36. Rf2 {[%emt 0:00:55]} Qe8 {[%emt 0:01:16]} 37. Rd1 {[%emt 0:02:35]} Qf7 {[%emt 0:00:31]} 38. Rdd2 {[%emt 0:00:05]} Qe8 {[%emt 0:00:42]} 39. Bd1 {[%emt 0:00:11]} Qg6 {[%emt 0:01:10]} 40. g4 {[%emt 0:03:17]} Qe8 {[%emt 0:01:57]} 41. Kg3 {[%emt 0:00:53]} Rdf7 {[%emt 0:01:24]} 42. Rf3 {[%emt 0:06:54]} Qe7 {[%emt 0:03:32]} 43. Rh2 {[%emt 0:01:37]} Nd7 {[%emt 0:02:28]} 44. Qc3 {[%emt 0:02:43]} Nf6 {[%emt 0:04:03]} 45. Bc2 {[%emt 0:00:28]} Nd7 {[%emt 0:00:11]} 46. Rff2 {[%emt 0:01:30]} g5 {[%emt 0:01:40]} 47. hxg5 {[%emt 0:00:14]} hxg5 {[%emt 0:00:04]} 48. Be3 {[%emt 0:00:22]} Rxf2 {[%emt 0:00:22]} 49. Bxf2 {[%emt 0:01:02]} Qf6 {[%emt 0:00:19]} 50. Qe3 {[%emt 0:00:39]} Qf4+ {[%emt 0:01:22]} 51. Qxf4 {[%emt 0:00:02]} gxf4+ {[%emt 0:00:10]} 52. Kf3 {[%emt 0:00:08]} e5 {[%emt 0:00:57]} 53. Rh6 {[%emt 0:00:36]} exd4 {[%emt 0:00:31]} 54. Bxd4 {[%emt 0:00:05]} a5 {[%emt 0:00:21]} 55. g5 {[%emt 0:07:52]} Kf7 {[%emt 0:00:34]} 56. g6+ {[%emt 0:00:11]} Ke6 {[%emt 0:00:24]} 57. g7+ {[%emt 0:12:01] Kd5} 1-0

[Event "6th Uppsala Young Champions 2019"]
[Site "Uppsala"]
[Date "2019.10.30"]
[Round "8.9"]
[White "Narva, David"]
[Black "Muntean, Victor"]
[Result "1-0"]
[ECO "C84"]
[WhiteElo "1979"]
[BlackElo "2020"]
[Annotator "NA"]
[PlyCount "85"]
[EventDate "2019.10.25"]
[EventType "swiss"]
[EventCountry "SWE"]
[SourceTitle "playchess.com"]
[Source "ChessBase"]
[SourceQuality "1"]
[TimeControl "5400+30"]

1. e4 {[%emt 0:00:00]} e5 {[%emt 0:00:00]} 2. Nf3 {[%emt 0:00:00]} Nc6 {[%emt 0:00:00]} 3. Bb5 {[%emt 0:00:00]} a6 {[%emt 0:00:00]} 4. Ba4 {[%emt 0:00:00]} Nf6 {[%emt 0:00:00]} 5. d3 {[%emt 0:00:00]} b5 {[%emt 0:00:54]} 6. Bb3 {[%emt 0:00:00]} Be7 {[%emt 0:00:40]} 7. O-O {[%emt 0:00:23]} O-O {[%emt 0:01:13]} 8. a4 {[%emt 0:02:30]} b4 {[%emt 0:09:29]} 9. a5 {[%emt 0:05:55]} d6 {[%emt 0:03:13]} 10. Nbd2 {[%emt 0:04:23]} h6 {[%emt 0:02:14] C84: Closed Ruy Lopez: Unusual White 6th moves} 11. Nc4 {[%emt 0:01:13]} (11. Re1 Rb8 12. h3 Be6 13. Ba4 Nxa5 14. d4 c5 15. dxe5 dxe5 16. Nxe5 c4 17. Qe2 Rc8 18. Ndf3 {½-½ (25) Vitiugov,N (2730)-Tomashevsky,E (2702) Satka 2018}) 11... Be6 {[%emt 0:01:51]} 12. Ba4 {[%emt 0:13:25]} Nb8 {[%emt 0:05:00]} 13. Qe1 {[%emt 0:24:57]} c5 $146 {[%emt 0:12:59]} ({Predecessor:} 13... Nbd7 14. Bc6 Rb8 15. Be3 d5 16. exd5 Bxd5 17. Bxd5 Nxd5 18. Nfxe5 Nxe5 19. Nxe5 {½-½ (58) Isakov,A (2286)-Khusenkhojaev,M (2092) St Petersburg 2015}) 14. c3 {[%emt 0:07:31]} Bxc4 {[%emt 0:04:44]} 15. dxc4 {[%emt 0:00:52]} bxc3 {[%emt 0:00:10]} 16. bxc3 {[%emt 0:01:28]} Qxa5 {[%emt 0:00:21] [#]} 17. Nh4 $1 {[%emt 0:00:32]} Qd8 {[%emt 0:04:50]} 18. Nf5 {[%emt 0:02:54]} Nh7 {[%emt 0:10:05] [#]} (18... Kh7 $16) 19. Qd1 $16 {[%emt 0:02:39]} (19. f4 $1 $18 {and White stays clearly on top.}) 19... Bg5 {[%emt 0:04:06]} 20. Qxd6 {[%emt 0:04:35]} Qxd6 {[%emt 0:01:10]} 21. Nxd6 {[%emt 0:00:05]} Bxc1 {[%emt 0:00:08]} 22. Rfxc1 {[%emt 0:01:50]} Ng5 {[%emt 0:01:33]} 23. Rd1 {[%emt 0:03:42]} Ra7 {[%emt 0:04:54]} 24. f3 {[%emt 0:03:31]} g6 {[%emt 0:03:01]} 25. Rab1 {[%emt 0:02:19]} Rd8 {[%emt 0:00:15]} 26. Ne8 {[%emt 0:01:40]} Rxd1+ {[%emt 0:01:15]} 27. Rxd1 {[%emt 0:00:20]} Ne6 {[%emt 0:01:17]} 28. Rb1 {[%emt 0:02:50]} Ra8 {[%emt 0:01:13]} 29. Rb7 {[%emt 0:01:29]} a5 {[%emt 0:03:39]} 30. Nd6 {[%emt 0:01:38]} Nd8 {[%emt 0:01:02]} 31. Re7 {[%emt 0:00:21]} Na6 {[%emt 0:02:06]} 32. Re8+ {[%emt 0:00:32]} Kg7 {[%emt 0:00:06]} 33. Nb7 {[%emt 0:00:59]} Rb8 {[%emt 0:00:06]} 34. Nxd8 {[%emt 0:00:13]} Rb1+ {[%emt 0:00:10]} 35. Kf2 {[%emt 0:00:05]} Ra1 {[%emt 0:00:08]} 36. Bb5 {[%emt 0:01:52]} a4 {[%emt 0:01:53]} 37. Re7 {[%emt 0:02:38]} a3 {[%emt 0:01:12]} 38. Rxf7+ {[%emt 0:00:15]} Kg8 {[%emt 0:00:06]} 39. Ra7 {[%emt 0:03:49]} Nb4 {[%emt 0:01:27]} 40. cxb4 {[%emt 0:00:13]} cxb4 {[%emt 0:00:06]} 41. Bc6 {[%emt 0:01:11]} b3 {[%emt 0:01:13]} 42. Bd5+ {[%emt 0:00:15]} Kf8 {[%emt 0:00:39]} 43. Ne6+ {[%emt 0:00:20]} 1-0

[Event "6th Uppsala Young Champions 2019"]
[Site "Uppsala"]
[Date "2019.10.30"]
[Round "8.10"]
[White "Trost, Edvin"]
[Black "Apol, Luitjen Akselsson"]
[Result "1-0"]
[ECO "B94"]
[WhiteElo "1982"]
[BlackElo "2129"]
[Annotator "NA"]
[PlyCount "81"]
[EventDate "2019.10.25"]
[EventType "swiss"]
[EventCountry "SWE"]
[SourceTitle "playchess.com"]
[Source "ChessBase"]
[SourceQuality "1"]
[TimeControl "5400+30"]

1. e4 {[%emt 0:03:24]} c5 {[%emt 0:00:00]} 2. Nf3 {[%emt 0:00:03]} d6 {[%emt 0:00:18]} 3. d4 {[%emt 0:00:06]} cxd4 {[%emt 0:00:22]} 4. Nxd4 {[%emt 0:00:08]} Nf6 {[%emt 0:00:35]} 5. Nc3 {[%emt 0:00:04]} a6 {[%emt 0:00:27]} 6. Bg5 {[%emt 0:00:40]} Nbd7 {[%emt 0:00:47]} 7. Bc4 {[%emt 0:00:25]} Qa5 {[%emt 0:00:23]} 8. Qd2 {[%emt 0:00:06]} e6 {[%emt 0:00:21]} 9. O-O {[%emt 0:00:34]} h6 {[%emt 0:00:55]} 10. Bh4 {[%emt 0:00:23]} b5 {[%emt 0:00:27] B94: Sicilian Najdorf: 6 Bg5 Nbd7} (10... Be7 11. Rad1 Ne5 12. Bb3 g5 13. Bg3 Nh5 14. Ba4+ Kf8 15. Bb3 Bd7 16. Qe2 g4 17. Bxe5 dxe5 18. Nf5 {1-0 (37) Rasulov,V (2488)-Sutovsky,E (2660) Baku 2013}) 11. Bb3 {[%emt 0:00:42]} Qb6 {[%emt 0:01:28]} 12. Rfe1 {[%emt 0:05:54]} Be7 {[%emt 0:02:14]} 13. Kh1 $146 {[%emt 0:11:26]} ({Predecessor:} 13. Bxe6 fxe6 14. Nxe6 Rg8 15. Nf4 Bb7 16. Ncd5 Bxd5 17. Nxd5 Qc5 18. b4 {0-1 (70) Fischer,W (2478)-Zuev,D (2474) ICCF email 2014}) 13... Bb7 {[%emt 0:02:56]} 14. f4 {[%emt 0:01:39]} Nc5 {[%emt 0:06:38]} 15. f5 $1 {[%emt 0:09:43]} e5 {[%emt 0:02:32]} 16. Bxf6 $1 {[%emt 0:01:44]} Bxf6 {[%emt 0:03:54]} 17. Nd5 {[%emt 0:01:53]} Qd8 {[%emt 0:04:49]} 18. Nf3 {[%emt 0:00:30]} O-O {[%emt 0:03:06]} 19. Nxf6+ {[%emt 0:03:39]} Qxf6 {[%emt 0:00:10]} 20. Bd5 {[%emt 0:00:02]} Bxd5 {[%emt 0:04:03]} 21. Qxd5 {[%emt 0:02:50]} Rac8 {[%emt 0:00:16]} 22. c4 {[%emt 0:03:37]} bxc4 {[%emt 0:04:19]} 23. Qxc4 {[%emt 0:01:10]} a5 {[%emt 0:01:50]} 24. Qd5 {[%emt 0:02:35]} Rb8 {[%emt 0:01:58]} 25. b3 {[%emt 0:03:38]} Rfc8 $11 {[%emt 0:02:41]} 26. Rad1 {[%emt 0:01:06]} Rb6 {[%emt 0:01:17]} 27. Nd2 {[%emt 0:00:16]} Rbb8 {[%emt 0:31:38]} 28. Nc4 {[%emt 0:01:07]} Nb7 {[%emt 0:00:05]} 29. Re3 {[%emt 0:08:36]} Rc5 {[%emt 0:03:15]} 30. Qd2 {[%emt 0:03:45]} Rbc8 {[%emt 0:06:36]} 31. Rd3 {[%emt 0:02:52]} R8c6 {[%emt 0:01:00]} 32. h3 {[%emt 0:01:25]} Qh4 {[%emt 0:01:59]} 33. Qe3 {[%emt 0:01:18]} Qe7 {[%emt 0:01:41]} 34. Kh2 {[%emt 0:00:14]} Qc7 {[%emt 0:01:12]} 35. Qd2 {[%emt 0:06:53]} Kh7 {[%emt 0:00:47]} 36. f6 {[%emt 0:01:20]} g6 {[%emt 0:05:08]} 37. Rd5 {[%emt 0:05:56]} a4 {[%emt 0:03:22]} 38. Rxc5 {[%emt 0:00:47]} Rxc5 {[%emt 0:01:31]} 39. Ne3 {[%emt 0:00:49]} h5 {[%emt 0:00:44]} 40. Nf5 {[%emt 0:00:54]} gxf5 {[%emt 0:00:09]} 41. Qg5 {[%emt 0:00:02]} 1-0

[Event "6th Uppsala Young Champions 2019"]
[Site "Uppsala"]
[Date "2019.10.30"]
[Round "8.11"]
[White "Nguyen, Gabriel"]
[Black "Rasti, Arvin"]
[Result "0-1"]
[ECO "A14"]
[WhiteElo "2071"]
[BlackElo "2179"]
[Annotator "NA"]
[PlyCount "129"]
[EventDate "2019.10.25"]
[EventType "swiss"]
[EventCountry "SWE"]
[SourceTitle "playchess.com"]
[Source "ChessBase"]
[SourceQuality "1"]
[TimeControl "5400+30"]

1. Nf3 {[%emt 1:30:30]} Nf6 {[%emt 1:30:30]} 2. d4 {[%emt 0:00:30]} e6 {[%emt 0:00:30]} 3. g3 {[%emt 0:00:30]} c5 {[%emt 0:00:30]} 4. Bg2 {[%emt 0:00:30]} Nc6 {[%emt 0:00:30]} 5. O-O {[%emt 0:00:30]} d5 {[%emt 0:00:30]} 6. e3 {[%emt 0:00:30]} Be7 {[%emt 0:00:30]} 7. b3 {[%emt 0:00:30]} O-O {[%emt 0:00:30]} 8. Bb2 {[%emt 0:00:30]} b6 {[%emt 0:00:30]} 9. Nbd2 {[%emt 0:00:30]} Bb7 {[%emt 0:00:30]} 10. c4 {[%emt 0:00:30]} Rc8 {[%emt 0:00:30]} 11. Rc1 {[%emt 0:00:30]} cxd4 {[%emt 0:00:30]} 12. Nxd4 {[%emt 0:00:30]} Nxd4 {[%emt 0:00:30] A14: English Opening: 1...e6 with b3 by White} 13. exd4 {[%emt 0:00:30]} (13. Bxd4 Qd7 14. Nf3 Ba3 15. Rc2 dxc4 16. Ne5 Qe7 17. Bxb7 Qxb7 18. Nxc4 Be7 19. Bxf6 gxf6 20. Qg4+ {1-0 (81) Van Wely,L (2622)-Ivanov,A (2516) Ledyard 2009}) 13... Rc7 {[%emt 0:00:30]} 14. cxd5 $146 {[%emt 0:00:30]} ({Predecessor:} 14. Qe2 Qb8 15. cxd5 Rxc1 16. Rxc1 Bxd5 17. Bxd5 Nxd5 {½-½ (25) Gampersberger,H (1999)-Detter,P (2031) Austria 2015}) 14... Bxd5 {[%emt 0:00:30]} 15. Bxd5 {[%emt 0:00:30]} Nxd5 {[%emt 0:00:30]} 16. Nc4 {[%emt 0:00:30]} Qc8 {[%emt 0:00:30]} 17. Ne3 {[%emt 0:00:30]} Rd8 {[%emt 0:00:30]} 18. Qe2 {[%emt 0:00:30]} Nb4 {[%emt 0:00:30]} 19. Rxc7 {[%emt 0:00:30]} Qxc7 20. a3 {[%emt 0:00:30]} Nd5 {[%emt 0:01:00]} 21. Nxd5 {[%emt 0:00:30]} Rxd5 {[%emt 0:00:30]} 22. Rc1 {[%emt 0:00:30]} Qd7 {[%emt 0:00:30]} 23. Qc4 {[%emt 0:00:30]} h5 {[%emt 0:00:30]} 24. Qc8+ {[%emt 0:00:30]} Kh7 {[%emt 0:00:30]} 25. Qxd7 Rxd7 26. h4 $15 {[%emt 0:01:00]} Bf6 {[%emt 0:01:00]} 27. Rc4 {[%emt 0:00:30]} Kg6 {[%emt 0:00:30]} 28. Kg2 {[%emt 0:00:30]} Kf5 {[%emt 0:00:30]} 29. Kf3 {[%emt 0:00:30]} Be7 {[%emt 0:00:30]} 30. a4 {[%emt 0:00:30]} f6 {[%emt 0:00:30]} 31. Ke3 {[%emt 0:00:30]} g5 {[%emt 0:00:30]} 32. hxg5 {[%emt 0:00:30]} fxg5 {[%emt 0:00:30]} 33. Rc8 {[%emt 0:00:30]} h4 {[%emt 0:00:30]} 34. gxh4 gxh4 35. Kf3 {[%emt 0:01:00]} e5 {[%emt 0:01:00]} 36. dxe5 {[%emt 0:00:30]} Rd3+ 37. Kg2 {[%emt 0:00:30]} Rxb3 {[%emt 0:01:00]} 38. Rc7 {[%emt 0:00:30]} Bd8 {[%emt 0:00:30]} 39. Rc2 {[%emt 0:00:30]} Bg5 {[%emt 0:00:30]} 40. a5 {[%emt 0:00:30]} h3+ {[%emt 0:00:30]} 41. Kh1 {[%emt 0:00:30]} bxa5 {[%emt 0:00:30]} 42. Re2 {[%emt 0:00:30]} Ke6 {[%emt 0:00:30]} 43. Bd4 {[%emt 0:00:30]} Bf4 {[%emt 0:00:30]} 44. Re1 {[%emt 0:00:30]} a6 {[%emt 0:00:30]} 45. f3 {[%emt 0:00:30]} a4 {[%emt 0:00:30]} 46. Kg1 {[%emt 0:00:30]} Rxf3 {[%emt 0:00:30]} 47. Rb1 {[%emt 0:00:30]} Rb3 {[%emt 0:00:30]} 48. Rf1 {[%emt 0:00:30]} Bxe5 {[%emt 0:00:30]} 49. Re1 {[%emt 0:00:30]} Rb5 {[%emt 0:00:30]} 50. Bxe5 {[%emt 0:00:30]} Rxe5 {[%emt 0:00:30]} 51. Ra1 {[%emt 0:00:30]} Ra5 {[%emt 0:00:30]} 52. Kh2 {[%emt 0:00:30]} Kd5 {[%emt 0:00:30]} 53. Kxh3 {[%emt 0:00:30]} Kc4 {[%emt 0:00:30]} 54. Rg1 {[%emt 0:00:30]} a3 {[%emt 0:00:30]} 55. Rg4+ {[%emt 0:00:30]} Kd3 {[%emt 0:00:30]} 56. Rg3+ {[%emt 0:00:30]} Ke2 {[%emt 0:00:30]} 57. Rg2+ {[%emt 0:00:30]} Kf1 {[%emt 0:00:30]} 58. Ra2 {[%emt 0:00:30]} Ke1 {[%emt 0:00:30]} 59. Kg2 {[%emt 0:00:30]} Kd1 {[%emt 0:00:30]} 60. Kf3 {[%emt 0:00:30]} Kc1 {[%emt 0:00:30]} 61. Ke3 {[%emt 0:00:30]} Kb1 {[%emt 0:00:30]} 62. Rh2 {[%emt 0:00:30]} a2 {[%emt 0:00:30]} 63. Rh1+ {[%emt 0:00:30]} Kb2 {[%emt 0:00:30]} 64. Rh2+ {[%emt 0:00:30]} Kb3 {[%emt 0:00:30]} 65. Kd4 {[%emt 0:00:30]} 0-1

[Event "6th Uppsala Young Champions 2019"]
[Site "Uppsala"]
[Date "2019.10.30"]
[Round "8.12"]
[White "Wernberg, Hugo"]
[Black "Vainerchuk, Barys"]
[Result "1/2-1/2"]
[ECO "C54"]
[WhiteElo "2006"]
[BlackElo "2136"]
[Annotator "NA"]
[PlyCount "125"]
[EventDate "2019.10.25"]
[EventType "swiss"]
[EventCountry "SWE"]
[SourceTitle "playchess.com"]
[Source "ChessBase"]
[SourceQuality "1"]
[TimeControl "5400+30"]

1. e4 {[%emt 0:00:00]} e5 {[%emt 0:00:00]} 2. Nf3 {[%emt 0:00:00]} Nc6 {[%emt 0:00:00]} 3. Bc4 {[%emt 0:00:42]} Bc5 {[%emt 0:00:00]} 4. c3 {[%emt 0:00:09]} Nf6 {[%emt 0:00:49]} 5. d4 {[%emt 0:00:18]} exd4 {[%emt 0:00:18]} 6. cxd4 {[%emt 0:00:02]} Bb4+ {[%emt 0:00:59]} 7. Nc3 {[%emt 0:03:17]} Nxe4 $1 {[%emt 0:01:19]} 8. O-O {[%emt 0:00:10]} Bxc3 {[%emt 0:00:12]} 9. d5 {[%emt 0:00:14]} Ne5 {[%emt 0:00:11]} 10. Qe2 {[%emt 0:01:39]} O-O {[%emt 0:08:40]} 11. bxc3 {[%emt 0:01:37]} Nxc4 {[%emt 0:03:01]} 12. Qxe4 {[%emt 0:00:19]} Nd6 {[%emt 0:00:04]} 13. Qd3 {[%emt 0:02:31]} b6 {[%emt 0:03:08] C54: Giuoco Piano: 4 c3 Nf6, main lines with 5 d4 and 5 d3} (13... Qf6 14. Re1 b6 15. Bg5 Qf5 16. Qxf5 Nxf5 17. g4 f6 18. Bf4 Nd6 19. Bxd6 cxd6 20. Nd4 Bb7 21. Nf5 {½-½ (37) Gashimov,V (2740)-Dominguez Perez,L (2713) Nice 2010}) 14. Bg5 {[%emt 0:05:23]} f6 {[%emt 0:01:01]} 15. Bf4 {[%emt 0:00:11]} Bb7 {[%emt 0:18:29]} 16. Rfe1 {[%emt 0:03:59]} Re8 {[%emt 0:05:49]} 17. Nd4 {[%emt 0:01:29]} Bxd5 $146 {[%emt 0:12:57]} ({Predecessor:} 17... Rxe1+ 18. Rxe1 Qf8 19. Bxd6 cxd6 20. Nf5 Re8 21. Re4 {0-1 (41) Benzetsel,E (1838)-Erdem,A (1756) Istanbul 2012}) 18. Bxd6 {[%emt 0:00:37]} cxd6 {[%emt 0:01:28]} 19. Nb5 {[%emt 0:04:20]} Rxe1+ {[%emt 0:06:57]} 20. Rxe1 {[%emt 0:00:03]} Be6 {[%emt 0:00:24]} ({Worse is} 20... Bxa2 21. c4 $16) 21. Qxd6 {[%emt 0:00:46]} Qf8 {[%emt 0:05:49]} 22. Qg3 {[%emt 0:05:28]} (22. Qd2 $142) 22... Bxa2 {[%emt 0:05:37]} 23. Ra1 {[%emt 0:06:47] [#]} Qc5 $1 {[%emt 0:04:22]} 24. Nd4 {[%emt 0:03:08]} Re8 $17 {[%emt 0:04:41]} (24... Bf7 $19 25. Ra6 Qg5 26. Qxg5 fxg5) 25. h4 {[%emt 0:02:14]} Qd5 {[%emt 0:05:11]} 26. Qc7 {[%emt 0:06:14]} a5 {[%emt 0:03:38]} 27. Qxb6 {[%emt 0:02:16]} Ra8 {[%emt 0:01:09]} 28. Nb5 {[%emt 0:05:23]} Qb3 {[%emt 0:07:03]} 29. Qb7 {[%emt 0:00:45]} Rf8 {[%emt 0:00:26]} 30. Qxd7 {[%emt 0:01:39]} a4 {[%emt 0:00:23]} 31. Re1 {[%emt 0:01:30]} Qd5 {[%emt 0:00:38]} 32. Qxd5+ {[%emt 0:03:38]} Bxd5 {[%emt 0:00:01]} 33. Ra1 {[%emt 0:01:15]} Bb3 {[%emt 0:00:59]} 34. Nd4 {[%emt 0:01:25]} Rc8 {[%emt 0:00:34]} 35. Rc1 {[%emt 0:03:15]} Bc4 {[%emt 0:00:34]} 36. Ra1 {[%emt 0:00:38]} Bb3 {[%emt 0:00:04]} 37. Rc1 {[%emt 0:00:09]} Kf7 {[%emt 0:00:07]} 38. f3 {[%emt 0:04:52]} Ke7 {[%emt 0:00:43]} 39. Kf2 {[%emt 0:01:24]} Kd6 {[%emt 0:00:20]} 40. Ke3 {[%emt 0:00:25]} Kc5 {[%emt 0:00:47]} 41. Kd2 {[%emt 0:00:17]} Re8 {[%emt 0:01:04]} 42. Ra1 {[%emt 0:01:02]} Kc4 {[%emt 0:00:30]} 43. Nxb3 {[%emt 0:04:10]} axb3 {[%emt 0:00:27]} 44. Ra4+ {[%emt 0:00:10]} Kc5 {[%emt 0:00:05]} 45. Ra7 {[%emt 0:02:57]} Rb8 {[%emt 0:00:54]} 46. Kc1 {[%emt 0:00:14]} b2+ {[%emt 0:00:23]} 47. Kb1 {[%emt 0:00:11]} Kc4 {[%emt 0:00:34]} 48. Rxg7 {[%emt 0:01:02]} h5 {[%emt 0:00:29]} 49. Rf7 {[%emt 0:11:58]} Rb6 {[%emt 0:00:11]} 50. g4 {[%emt 0:01:07]} hxg4 {[%emt 0:00:35]} 51. fxg4 {[%emt 0:00:13]} Kb3 {[%emt 0:00:41]} 52. h5 {[%emt 0:00:50]} Re6 {[%emt 0:00:31]} 53. Rb7+ {[%emt 0:00:15]} Kxc3 {[%emt 0:00:37]} 54. Rxb2 {[%emt 0:01:41]} Re1+ {[%emt 0:00:17]} 55. Ka2 {[%emt 0:00:12]} Rg1 {[%emt 0:00:45]} 56. Rb3+ {[%emt 0:00:43]} Kc4 {[%emt 0:00:12]} 57. Ka3 {[%emt 0:00:37]} Ra1+ {[%emt 0:00:16]} 58. Kb2 {[%emt 0:00:09]} Rg1 {[%emt 0:00:14]} 59. Rf3 {[%emt 0:00:41]} Rxg4 {[%emt 0:00:17]} 60. Rxf6 {[%emt 0:00:15]} Rh4 {[%emt 0:00:08]} 61. Rh6 {[%emt 0:00:55]} Kd5 {[%emt 0:01:22]} 62. Rb6 {[%emt 0:00:43]} Ke5 {[%emt 0:00:22]} 63. h6 {[%emt 0:00:34]} 1/2-1/2

[Event "6th Uppsala Young Champions 2019"]
[Site "Uppsala"]
[Date "2019.10.30"]
[Round "8.13"]
[White "Falkevall, Axel"]
[Black "Grahn, Vidar"]
[Result "1/2-1/2"]
[ECO "C42"]
[WhiteElo "2036"]
[BlackElo "1926"]
[Annotator "NA"]
[PlyCount "67"]
[EventDate "2019.10.25"]
[EventType "swiss"]
[EventCountry "SWE"]
[SourceTitle "playchess.com"]
[Source "ChessBase"]
[SourceQuality "1"]
[TimeControl "5400+30"]

1. e4 {[%emt 0:00:00]} e5 {[%emt 0:00:00]} 2. Nf3 {[%emt 0:00:00]} Nf6 {[%emt 0:00:00]} 3. Nxe5 {[%emt 0:00:00]} d6 {[%emt 0:00:00]} 4. Nf3 {[%emt 0:00:00]} Nxe4 {[%emt 0:00:00]} 5. d4 {[%emt 0:00:00]} d5 {[%emt 0:00:05]} 6. Bd3 {[%emt 0:00:01]} Bd6 {[%emt 0:00:23]} 7. O-O {[%emt 0:00:12]} O-O {[%emt 0:00:06]} 8. c4 {[%emt 0:00:10]} c6 {[%emt 0:00:07]} 9. Nc3 {[%emt 0:01:02]} Nxc3 {[%emt 0:00:10]} 10. bxc3 {[%emt 0:00:04]} Bg4 {[%emt 0:00:15]} 11. h3 {[%emt 0:04:32]} Bh5 {[%emt 0:00:25]} 12. Rb1 {[%emt 0:01:33]} dxc4 {[%emt 0:08:39]} 13. Bxc4 {[%emt 0:01:19]} b5 {[%emt 0:00:27]} 14. Bd3 {[%emt 0:01:41]} Nd7 {[%emt 0:01:26]} 15. Re1 {[%emt 0:09:18] C42: Petroff Defence: 3 Nxe5 and unusual White 3rd moves} Nb6 {[%emt 0:03:03]} 16. Be4 {[%emt 0:08:46] [#]} Rc8 $146 {[%emt 0:02:26]} ({Predecessor:} 16... Bg6 17. Rb2 Bxe4 18. Rxe4 Nd5 19. Qd3 Re8 20. Rxe8+ Qxe8 21. Re2 {0-1 (36) Byrne,R (2460)-Vladimirov,Y (2565) Murcia 1990}) 17. Bf5 {[%emt 0:05:47]} Rc7 {[%emt 0:02:39]} 18. Qd3 {[%emt 0:02:01]} Bg6 {[%emt 0:03:29]} 19. Ng5 {[%emt 0:12:20]} Bxf5 {[%emt 0:07:08]} 20. Qxf5 {[%emt 0:00:12]} g6 {[%emt 0:00:12]} 21. Qf3 {[%emt 0:02:10]} Re8 {[%emt 0:04:17]} 22. Rxe8+ {[%emt 0:03:31]} Qxe8 {[%emt 0:00:18]} 23. Ne4 {[%emt 0:01:00]} Be7 {[%emt 0:01:50]} 24. Bf4 {[%emt 0:04:12]} Rc8 {[%emt 0:02:07]} 25. Re1 {[%emt 0:14:52]} Qd8 {[%emt 0:00:27]} 26. Be5 {[%emt 0:08:00]} f5 {[%emt 0:01:13]} 27. Ng3 {[%emt 0:00:56]} Nc4 $2 {[%emt 0:02:18] [#]} ({Better is} 27... Qf8 $11) 28. Bf4 {[%emt 0:02:39]} (28. Nxf5 $1 $16 {[%cal Rf5h6][%mdl 512]} Nxe5 (28... gxf5 29. Qg3+) 29. Nxe7+ (29. Rxe5 gxf5 30. Qxf5 Bf8 $15) 29... Qxe7 30. Rxe5) 28... Bh4 {[%emt 0:05:41]} 29. Nf1 {[%emt 0:04:51]} Qd5 {[%emt 0:04:03]} 30. Qe2 {[%emt 0:01:44]} Kf7 {[%emt 0:05:25]} 31. Nd2 {[%emt 0:01:32]} Nxd2 {[%emt 0:01:58]} 32. Qxd2 {[%emt 0:00:24]} Re8 {[%emt 0:04:12]} 33. Be5 {[%emt 0:01:12]} Bf6 {[%emt 0:00:54]} 34. Bxf6 {[%emt 0:01:14]} 1/2-1/2